Cogmind - Beta 10.2 @@@ ROGUE MODE // 2021.12.23 @ 13:07:35 Player: zazuza Result: Self-destructed Performance ------------- Evolutions (3) 1500 Regions Visited (5) 1000 Robots Destroyed (15) 75 Value Destroyed (200) 200 Prototype IDs (2) 40 Alien Tech Used (0) 0 Bonus (0) 0 TOTAL SCORE: 2815 Bonus ------- None Cogmind --------- Core Integrity 261/700 Matter 270/300 Energy 310/310 System Corruption 0% Temperature Cool (0) Movement Hovering (50) Location -7/Lower Caves Parts ------- > --- POWER (2) -------- Heavy Deuterium Engine > --- PROPULSION (5) --- Cooled Airjet > --- UTILITY (4) ------ (None) > --- WEAPON (2) ------- Spear > --- INVENTORY (4) ---- Improved ECM Suite Maneuvering Thrusters Peak State ------------ > --- POWER ------------ Light Ion Engine Light Ion Engine > --- PROPULSION ------- Flight Unit Flight Unit Flight Unit Flight Unit > --- UTILITY ---------- Hacking Suite > --- WEAPON ----------- Heavy Flail Heavy Flail > --- INVENTORY -------- Light Ion Engine Flight Unit Improved ECM Suite [Rating: 15] Favorites ----------- Power Light Ion Engine Engine Light Ion Engine Propulsion Flight Unit Hover Unit Cooled Airjet Flight Unit Flight Unit Utility Improved Sensor Array Device Improved Sensor Array Hackware Hacking Suite Weapon Heavy Flail Energy Gun EM Pulse Gun Ballistic Gun Light Assault Rifle Impact Weapon Heavy Flail Piercing Weapon Spear Build | -11 -10 -9 -8 -7 -7 ------- Run | Scr Mat Mat Mat Fac Low Slots Evolved 6 | . . 2 2 2 . Power 1 | . . . 1 . . Propulsion 3 | . . 1 1 1 . Utility 2 | . . 1 . 1 . Weapon . | . . . . . . Parts Attached 24 | 1 2 1 14 6 . Power 5 | . . . 3 2 . Engine 5 | . . . 3 2 . Core . | . . . . . . Reactor . | . . . . . . Propulsion 9 | . . 1 5 3 . Treads . | . . . . . . Leg . | . . . . . . Wheel . | . . . . . . Hover 1 | . . . . 1 . Flight 8 | . . 1 5 2 . Utility 2 | . 1 . 1 . . Device 1 | . 1 . . . . Storage . | . . . . . . Processor . | . . . . . . Hackware 1 | . . . 1 . . Protection . | . . . . . . Artifact . | . . . . . . Weapon 8 | 1 1 . 5 1 . Energy Gun 2 | 1 . . 1 . . Energy Cannon . | . . . . . . Ballistic Gun 2 | . . . 2 . . Ballistic Cannon . | . . . . . . Launcher . | . . . . . . Special Weapon . | . . . . . . Impact Weapon 3 | . 1 . 2 . . Slashing Weapon . | . . . . . . Piercing Weapon 1 | . . . . 1 . Special Melee Weapon . | . . . . . . Unidentified Prototypes 2 | . . . . 2 . Parts Lost 18 | . . 1 8 9 . Power 4 | . . . 2 2 . Propulsion 8 | . . 1 1 6 . Utility 2 | . . . 2 . . Weapon 4 | . . . 3 1 . Highest Loss Streak 8 | . . 1 3 8 . Average Slot Usage (%) 26 | . 26 24 32 24 . Engine 4 | . . . 6 4 . Flight 7 | . . 2 10 9 . Device 3 | . 12 11 1 . . Hackware 1 | . . . 5 . . Ballistic Gun 1 | . . . 5 . . Impact Weapon 7 | . 14 11 2 7 . Naked Turns 58 | . . . 13 45 . Heaviest Build 13 | 2 3 3 12 13 . Greatest Support 16 | 3 3 4 16 16 . Greatest Overweight (x) . | . . . . . . Average Overweight (x) . | . . . . . . Largest Inventory Capacity 4 | 4 4 4 4 4 . Average Capacity 4 | 4 4 4 4 4 . Most Carried 4 | 1 3 2 4 4 . Average Carried 2 | . 2 2 1 2 . Final Capacity 4 | 4 4 4 4 4 4 Final Carried 3 | 1 3 2 3 2 2 Class Distribution -------------------- 82% | Mutant 17% | Scavenger-Sprinter Dominant Class ---------------- Mutant | -10/Materials Mutant | -9/Materials Mutant | -8/Materials Mutant | -7/Factory Mutant | -7/Lower Caves Resources | -11 -10 -9 -8 -7 -7 ----------- Run | Scr Mat Mat Mat Fac Low Matter Collected 354 | 193 37 . 20 104 . Remotely . | . . . . . . Salvage Created 421 | 84 170 . 167 . . Parts 21 | 5 3 . 13 . . Haulers Intercepted . | . . . . . . Recyclers Shooed . | . . . . . . Parts Field Recycled . | . . . . . . Retrieved Matter . | . . . . . . Parts Self-Destructed . | . . . . . . Prevented . | . . . . . . Kills | -11 -10 -9 -8 -7 -7 ------- Run | Scr Mat Mat Mat Fac Low Combat Hostiles Destroyed 12 | . 4 . 8 . . Melee 4 | . 2 . 2 . . Guns 5 | . . . 5 . . AOE 1 | . . . 1 . . Classes Destroyed 4 | 2 2 . . . . Tunneler 1 | 1 . . . . . Recycler 2 | 1 1 . . . . Swarmer 10 | . 3 . 7 . . Grunt 2 | . 1 . 1 . . Best Kill Streak 5 | 2 5 . 4 . . Combat Bots Only 4 | . 4 . 4 . . Max Kills in Single Turn 2 | 1 2 . 1 . . Gunslinging . | . . . . . . Exploded 1 | . . . 1 . . Melee 1 | . 1 . 1 . . Uniques/NPCs Destroyed . | . . . . . . Combat | -11 -10 -9 -8 -7 -7 -------- Run | Scr Mat Mat Mat Fac Low Damage Taken 1469 | . 110 116 516 727 . Core 815 | . 72 78 226 439 . Absorbed by Shields 37 | . . . . 37 . Core Remaining (%) 77 | 100 71 80 58 . . Volleys Fired 37 | 3 . . 34 . . Largest 1 | 1 . . 1 . . Hottest 40 | 40 . . 40 . . Shots Fired 37 | 3 . . 34 . . Gun 37 | 3 . . 34 . . Cannon . | . . . . . . Launcher . | . . . . . . Special . | . . . . . . Kinetic 25 | . . . 25 . . Thermal . | . . . . . . Explosive . | . . . . . . Electromagnetic 12 | 3 . . 9 . . Robot Hit Streak 5 | 3 . . 5 . . Robot Miss Streak 4 | . . . 4 . . Penetration Max . | . . . . . . Secondary Targets . | . . . . . . Shots Hit Robots 37 | 3 11 1 22 . . Core Hits 17 | 2 2 . 13 . . Critical Hits . | . . . . . . Critical Kills . | . . . . . . Critical Parts Destroyed . | . . . . . . Melee Attacks 27 | . 12 4 3 8 . Impact 27 | . 12 4 3 8 . Slashing . | . . . . . . Piercing . | . . . . . . Sneak Attacks 2 | . 1 1 . . . Combat Hostiles . | . . . . . . Follow-up Attacks . | . . . . . . Damage Inflicted 674 | 42 277 42 313 . . Guns 240 | 42 . . 198 . . Cannons . | . . . . . . Explosions 37 | . . . 37 . . Melee 372 | . 277 42 53 . . Ramming 25 | . . . 25 . . Kinetic 143 | . . . 143 . . Thermal 37 | . . . 37 . . Explosive . | . . . . . . Electromagnetic 97 | 42 . . 55 . . Impact 372 | . 277 42 53 . . Slashing . | . . . . . . Piercing . | . . . . . . Highest Corruption . | . . . . . . Average Corruption . | . . . . . . Corruption Purged . | . . . . . . Overload Shots . | . . . . . . Overflow Damage 55 | . 35 . 20 . . Projectiles 1 | . 1 . . . . Explosions 20 | . . . 20 . . Melee 34 | . 34 . . . . Knockbacks 3 | . 3 . . . . Impact 2 | . 2 . . . . Kinetic . | . . . . . . Secondary 1 | . 1 . . . . Self-Inflicted Damage 41 | . . . 41 . . Shots 1 | . . . 1 . . Rammed 5 | . . . 5 . . Targets Rammed 5 | . . . 5 . . Kicked . | . . . . . . Crushed . | . . . . . . Highest Temperature 9 | . . . 9 . . Average Temperature 5 | . . . 5 . . Received Heat Transfer 261 | . 6 54 63 138 . Siege Activations . | . . . . . . Robots Corrupted . | . . . . . . Combat Hostiles . | . . . . . . Parts Fried 5 | . 5 . . . . Impact Corruptions 4 | . 4 . . . . Robots Melted . | . . . . . . Combat Hostiles . | . . . . . . Parts Melted . | . . . . . . Heat Transferred 50 | . . . 50 . . Parts Sabotaged . | . . . . . . Parts Stolen . | . . . . . . Parts Stripped . | . . . . . . Power Chain Reactions 1 | . . . 1 . . Missiles Intercepted . | . . . . . . Alert | -11 -10 -9 -8 -7 -7 ------- Run | Scr Mat Mat Mat Fac Low Peak Influence 355 | 10 174 108 190 355 . Initial 81 | . 6 73 45 81 . Average 157 | 4 89 98 129 209 . Maximum Alert Level 1 | . . . . 1 . Low Security (%) 70 | 100 100 100 100 41 . Level 1 29 | . . . . 58 . Level 2 . | . . . . . . Level 3 . | . . . . . . Level 4 . | . . . . . . Level 5 . | . . . . . . High Security . | . . . . . . Max Security . | . . . . . . Squads Dispatched 8 | . . 3 2 3 . Investigation 1 | . . 1 . . . Extermination 1 | . . . . 1 . Reinforcement 6 | . . 2 2 2 . Assault . | . . . . . . Garrison . | . . . . . . Intercept . | . . . . . . Construction Impeded . | . . . . . . Haulers Reinforced . | . . . . . . Stealth | -11 -10 -9 -8 -7 -7 --------- Run | Scr Mat Mat Mat Fac Low Distress Signals 3 | . 3 . . . . Communications Jammed . | . . . . . . Distress Signals . | . . . . . . Times Spotted 50 | . 10 7 13 20 . Peak Tracking Total 8 | . 5 6 4 8 . Tactical Retreats 11 | . 3 . . 8 . Traps | -11 -10 -9 -8 -7 -7 ------- Run | Scr Mat Mat Mat Fac Low Traps Triggered 2 | . . 1 . 1 . Indirectly . | . . . . . . Trap Hack Attempts . | . . . . . . Triggered . | . . . . . . Disarmed . | . . . . . . Reprogrammed . | . . . . . . Reused . | . . . . . . Traps Extracted . | . . . . . . Installed . | . . . . . . Triggered . | . . . . . . Machines | -11 -10 -9 -8 -7 -7 ---------- Run | Scr Mat Mat Mat Fac Low Machines Disabled . | . . . . . . Max in Single Turn . | . . . . . . Machines Sabotaged . | . . . . . . Garrisons Compromised . | . . . . . . Overloaded Fab Kills . | . . . . . . Fab Network Shutdowns . | . . . . . . Hacking | -11 -10 -9 -8 -7 -7 --------- Run | Scr Mat Mat Mat Fac Low Machines Accessed 1 | . 1 . . . . Terminals 1 | . 1 . . . . Fabricators . | . . . . . . Repair Stations . | . . . . . . Recycling Units . | . . . . . . Scanalyzers . | . . . . . . Garrison Access . | . . . . . . Total Hacks 3 | . 3 . . . . Successful 2 | . 2 . . . . Failed 1 | . 1 . . . . Catastrophic . | . . . . . . Database Lockouts . | . . . . . . Manual 3 | . 3 . . . . Terminals 3 | . 3 . . . . Fabricators . | . . . . . . Repair Stations . | . . . . . . Recycling Units . | . . . . . . Scanalyzers . | . . . . . . Garrison Access . | . . . . . . Terminal Hacks 2 | . 2 . . . . Part Schematic 1 | . 1 . . . . Zone Layout 1 | . 1 . . . . Fabricator Hacks . | . . . . . . Repair Station Hacks . | . . . . . . Recycling Unit Hacks . | . . . . . . Scanalyzer . | . . . . . . Garrison Access Hacks . | . . . . . . Unauthorized Hacks . | . . . . . . Terminals . | . . . . . . Fabricators . | . . . . . . Repair Stations . | . . . . . . Recycling Units . | . . . . . . Scanalyzers . | . . . . . . Garrison Access . | . . . . . . Data Cores Recovered . | . . . . . . Used . | . . . . . . Hacking Detections 1 | . 1 . . . . Full Trace Events . | . . . . . . Feedback Events . | . . . . . . Feedback Blocked . | . . . . . . Robot Schematics Acquired . | . . . . . . Robots Built . | . . . . . . Matter . | . . . . . . Time . | . . . . . . Total Robot Build Rating . | . . . . . . Part Schematics Acquired 1 | . 1 . . . . Parts Built . | . . . . . . Matter . | . . . . . . Time . | . . . . . . Total Part Build Rating . | . . . . . . Parts Repaired . | . . . . . . Time . | . . . . . . Parts Recycled . | . . . . . . Recycled Matter . | . . . . . . Retrieved Matter . | . . . . . . Retrieved Components . | . . . . . . Parts Scanalyzed . | . . . . . . Part Schematics Acquired . | . . . . . . Parts Damaged . | . . . . . . Bothacking | -11 -10 -9 -8 -7 -7 ------------ Run | Scr Mat Mat Mat Fac Low Used RIF Installer . | . . . . . . Robots Hacked . | . . . . . . Non-combat . | . . . . . . Combat . | . . . . . . Robot Hacks Applied . | . . . . . . Relay Couplers Released . | . . . . . . Robots Rewired . | . . . . . . Allies Hacked . | . . . . . . Hacks Repelled . | . . . . . . Allies | -11 -10 -9 -8 -7 -7 -------- Run | Scr Mat Mat Mat Fac Low Total Allies . | . . . . . . Largest Group . | . . . . . . Highest-Rated Group . | . . . . . . Highest-Rated Ally . | . . . . . . Total Orders . | . . . . . . Ally Attacks . | . . . . . . Total Damage . | . . . . . . Kills . | . . . . . . Allies Corrupted . | . . . . . . Allies Melted . | . . . . . . Intel | -11 -10 -9 -8 -7 -7 ------- Run | Scr Mat Mat Mat Fac Low Robot Analysis Total . | . . . . . . Derelict Logs Recovered . | . . . . . . Drone Launches . | . . . . . . Drone Recoveries . | . . . . . . Exploration | -11 -10 -9 -8 -7 -7 ------------- Run | Scr Mat Mat Mat Fac Low Turns Passed 657 | 22 92 53 161 329 . Spaces Moved 984 | 26 106 87 128 637 . Core 542 | 26 106 68 22 320 . Treads . | . . . . . . Legs . | . . . . . . Wheels . | . . . . . . Hover 95 | . . . . 95 . Flight 347 | . . 19 106 222 . Fastest Speed 31 | 50 50 40 31 31 . Average Speed 44 | 50 50 47 38 44 . Slowest Speed 50 | 50 50 50 50 50 . Overloaded Moves . | . . . . . . Propulsion Burnouts . | . . . . . . Robots Hopped . | . . . . . . Cave-ins Triggered . | . . . . . . Exploration Rate (%) 17 | 4 36 20 16 25 3 Regions Visited 5 Branch Regions 1 Pre-discovered Areas . | . . . . . . Known Exits Taken . | . . . . . . Unknown Exits Taken 5 | 1 1 1 1 1 . Scrap Searched . | . . . . . . Spaces Dug 10 | . . 3 . 7 . Terrain Destroyed 15 | . . 3 5 7 . Melee 10 | . . 3 . 7 . Projectile . | . . . . . . AOE 5 | . . . 5 . . Terrain Rammed . | . . . . . . Walls Destroyed . | . . . . . . Machines Disabled . | . . . . . . Actions | -11 -10 -9 -8 -7 -7 --------- Run | Scr Mat Mat Mat Fac Low Total 1115 | 31 125 91 200 668 . Wait 13 | 1 4 . 8 . . Move 979 | 25 105 86 127 636 . Hop . | . . . . . . Pick Up 11 | 1 1 . 6 3 . Fast Attach 18 | 1 2 . 11 4 . Attach 6 | . . 1 3 2 . Detach 1 | . 1 . . . . Swap . | . . . . . . Drop 6 | . . . 3 3 . Fire 37 | 3 . . 34 . . Melee 27 | . 12 4 3 8 . Ram 5 | . . . 5 . . Kick . | . . . . . . Crush . | . . . . . . Escape Stasis 12 | . . . . 12 . Rewire . | . . . . . . Trap . | . . . . . . Miscellaneous . | . . . . . . Route ------- -11/Scrapyard -10/Materials -9/Materials -8/Materials -7/Factory -7/Lower Caves History --------- Turn | Location | Event 8 | -11/Scrapyard | Discovered new exit (range 12) 23 | -11/Scrapyard | Entered Materials 114 | -10/Materials | Discovered new exit (range 3) 115 | -10/Materials | Entered another Materials area 115 | -9/Materials | Evolved 2 slots: Propulsion x1, Utility x1 163 | -9/Materials | Discovered new exit (range 11) 168 | -9/Materials | Entered another Materials area 168 | -8/Materials | Evolved 2 slots: Power x1, Propulsion x1 226 | -8/Materials | Lost 3 parts (1u2w) 288 | -8/Materials | Lost 3 parts (1p1n1w) 312 | -8/Materials | Discovered new exit (range 5) 329 | -8/Materials | Entered Factory 329 | -7/Factory | Evolved 2 slots: Propulsion x1, Utility x1 476 | -7/Factory | Lost 8 parts (2p6n) 573 | -7/Factory | Core integrity fell below 50% 656 | -7/Factory | Discovered new exit (range 4) 658 | -7/Factory | Entered Lower Caves 658 | -7/Lower Caves | Self-destructed Last Messages --------------- 00437_ Flight Unit destroyed. 00438_ Dropped Hvy. Flail. 00439_ U-05 Engineer lays Concrete. 00445_ VTOL Module destroyed. 00465_ Acquired Prototype Engine. 00469_ O-24 Administrator: "IFF HANDSHAKE FAILED. SECURING TERMINAL." 00473_ ALERT: Hostiles spotted, dispatching reinforcements to Terminal F018. 00561_ Hvy. Flail destroyed. 00579_ ALERT: Rogue bot located, Programmers report to Factory Zone 9R. 00606_ Acquired Prototype Hover Unit. 00606_ Identified Cld. Airjet. 00608_ Dropped Prototype Engine. 00608_ Acquired Prototype Engine. 00608_ Identified Hvy. Deuterium Engine. 00639_ Acquired Spear. 00642_ K-01 Serf cleans the Fusion Modulator. 00656_ EXIT=FOUND LOCATION=UNKNOWN GOAL=ESCAPE Map ----- +----------------------------------------------------+ | ?????????????????????????????????????????????????? | | ?????????????????????????????????????????????????? | | ?????????????????????????????????????????????????? | | ?????????????????????????????????????????????????? | | ?????????????????????????????????????????????????? | | ?????????????????????????????????????????????????? | | ?????????????????????????????????????????????????? | | ?????????????????????????????????????????????????? | | ?????????????????????????????????????????????????? | | ?????????????????????????????????????????????????? | | ?????????????????????????????????????????????????? | | ?????????????????????????????????????????????????? | | ?????????????????????????????????????????????????? | | ?????????????????????????????????????????????????? | | ?????????????????????????????????????????????????? | | ????????????????##???????????????????????????????? | | ????????????????# ??????????????????????????????? | | ????????????????# #########?##?????????????????? | | ????????????????# # ## ##????????????????? | | ???????????????## # ##???? ??????????? | | ???????????????# s ### ??????????? | | ????????????????? Yg ?????????? | | ??????????????????? g ???????????? | | ????????????????????# #??????????????? | | ????????????????????# g #??????????????? | | ??????????????????????# @ ????????? | | ??????????????????????# ##???????????????? | | ??????????????????????# ##????????????????? | | ??????????????????????# ## ##?????????????????? | | ??????????????????????## ###??#??????????????????? | | ???????????????????????##????????????????????????? | | ?????????????????????????????????????????????????? | | ?????????????????????????????????????????????????? | | ?????????????????????????????????????????????????? | | ?????????????????????????????????????????????????? | | ?????????????????????????????????????????????????? | | ?????????????????????????????????????????????????? | | ?????????????????????????????????????????????????? | | ?????????????????????????????????????????????????? | | ?????????????????????????????????????????????????? | | ?????????????????????????????????????????????????? | | ?????????????????????????????????????????????????? | | ?????????????????????????????????????????????????? | | ?????????????????????????????????????????????????? | | ?????????????????????????????????????????????????? | | ?????????????????????????????????????????????????? | | ?????????????????????????????????????????????????? | | ?????????????????????????????????????????????????? | | ?????????????????????????????????????????????????? | | ?????????????????????????????????????????????????? | +----------------------------------------------------+ Best States ------------- Heat Dissipation 34 Energy Generation 18 Energy Capacity 310 Matter Stores 300 Matter Capacity 300 Sight Range 16 Robot Scan Range 13 Terrain Scan Density 10 Evasion (%) 63 Offensive Hacking 10 Item Schematics ----------------- Flight Unit | -10/Materials | Hacked Robot Schematics ------------------ None Fabricated ------------ Nothing Alien Tech Used ----------------- None Achievements -------------- Fist Fight Challenges ------------ None Game ------ Seed HugeAlertMicroactuators Manual? 0 Play Time 00:23:29 Cumulative 70.3 hours Start 2021.12.23 @ 12:40:28 End 2021.12.23 @ 13:07:35 Sessions 1 Manual Loads 0 Difficulty Rogue Special Mode None Game No. 13 Rogue 13 Adventurer 0 Explorer 0 Win Type - Total 0 Types 0/0/0/0/0/0/0/0/0 Lore% 32 Gallery% 42 Achievement% 35 Wizard Run 0 Options --------- ASCII 0 Keyboard 0 Movement Mouse Keybinds 0 Fullscreen 1 Font 18/Terminus Map View 76x50 Tactical HUD 1 Map Filters NONE Filters NONE Steam 1 RUN: dfbf05fd-b93e-43bf-a6b0-c7663934bdfc